{"text_format":"1","workbook":"xlsx","n_sheets":9,"sheets":["1","بادى 23","نامى 21خشن","بادى نامى  ناعم","بادى نامى خشن","بياض","ردة","دشيشة","Setting"],"not_rendered":{"charts":0,"images":0,"macros":1,"external_links":0,"defined_names":0,"comments":0,"pivot_tables":0},"unopened":[],"bounds":{"document_bytes":16777216,"sheet_cells":100000,"rows_first":2000,"rows_last":500,"rows_between":2000,"halvings":0,"cell_chars":16384,"cell_head_chars":4096},"cells_cut":0,"cells_raw":0,"read":"whole","date_system":"1900"}

{"sheet":"1","index":0,"n_rows":101,"n_cols":16,"rows_kept":101,"cut":false,"hidden":false,"merged":[]}
["مسلسل",{"$f":"SUM($B$2:$B$1000)","v":0},"الصنف","الاسم","السعر",{"$f":"SUM($F$2:$F$1000)","v":0},null,null,null,"بادى 23","نامى 21 خشن","بادى نامى ناعم","بادى نامى خشن","بياض","ردة","دشيشة"]
[{"$f":"IF(C2=\"\",\"\",SUBTOTAL(3,$C$2:C2))","v":""},null,null,null,null,{"$f":"IFERROR(B2*E2,\"\")","v":0}]
[{"$f":"IF(C3=\"\",\"\",SUBTOTAL(3,$C$2:C3))","v":""},null,null,null,null,{"$f":"IFERROR(B3*E3,\"\")","v":0}]
[{"$f":"IF(C4=\"\",\"\",SUBTOTAL(3,$C$2:C4))","v":""},null,null,null,null,0]
[{"$f":"IF(C5=\"\",\"\",SUBTOTAL(3,$C$2:C5))","v":""},null,null,null,null,0]
[{"$f":"IF(C6=\"\",\"\",SUBTOTAL(3,$C$2:C6))","v":""},null,null,null,null,0]
[{"$f":"IF(C7=\"\",\"\",SUBTOTAL(3,$C$2:C7))","v":""},null,null,null,null,0]
[{"$f":"IF(C8=\"\",\"\",SUBTOTAL(3,$C$2:C8))","v":""},null,null,null,null,0]
[{"$f":"IF(C9=\"\",\"\",SUBTOTAL(3,$C$2:C9))","v":""},null,null,null,null,0]
[{"$f":"IF(C10=\"\",\"\",SUBTOTAL(3,$C$2:C10))","v":""},null,null,null,null,0]
[{"$f":"IF(C11=\"\",\"\",SUBTOTAL(3,$C$2:C11))","v":""},null,null,null,null,0]
[{"$f":"IF(C12=\"\",\"\",SUBTOTAL(3,$C$2:C12))","v":""},null,null,null,null,0]
[{"$f":"IF(C13=\"\",\"\",SUBTOTAL(3,$C$2:C13))","v":""},null,null,null,null,0]
[{"$f":"IF(C14=\"\",\"\",SUBTOTAL(3,$C$2:C14))","v":""},null,null,null,null,0]
[{"$f":"IF(C15=\"\",\"\",SUBTOTAL(3,$C$2:C15))","v":""},null,null,null,null,0]
[{"$f":"IF(C16=\"\",\"\",SUBTOTAL(3,$C$2:C16))","v":""},null,null,null,null,0]
[{"$f":"IF(C17=\"\",\"\",SUBTOTAL(3,$C$2:C17))","v":""},null,null,null,null,0]
[{"$f":"IF(C18=\"\",\"\",SUBTOTAL(3,$C$2:C18))","v":""},null,null,null,null,0]
[{"$f":"IF(C19=\"\",\"\",SUBTOTAL(3,$C$2:C19))","v":""},null,null,null,null,0]
[{"$f":"IF(C20=\"\",\"\",SUBTOTAL(3,$C$2:C20))","v":""},null,null,null,null,0]
[{"$f":"IF(C21=\"\",\"\",SUBTOTAL(3,$C$2:C21))","v":""},null,null,null,null,0]
[{"$f":"IF(C22=\"\",\"\",SUBTOTAL(3,$C$2:C22))","v":""},null,null,null,null,0]
[{"$f":"IF(C23=\"\",\"\",SUBTOTAL(3,$C$2:C23))","v":""},null,null,null,null,0]
[{"$f":"IF(C24=\"\",\"\",SUBTOTAL(3,$C$2:C24))","v":""},null,null,null,null,0]
[{"$f":"IF(C25=\"\",\"\",SUBTOTAL(3,$C$2:C25))","v":""},null,null,null,null,0]
[{"$f":"IF(C26=\"\",\"\",SUBTOTAL(3,$C$2:C26))","v":""},null,null,null,null,0]
[{"$f":"IF(C27=\"\",\"\",SUBTOTAL(3,$C$2:C27))","v":""},null,null,null,null,0]
[{"$f":"IF(C28=\"\",\"\",SUBTOTAL(3,$C$2:C28))","v":""},null,null,null,null,0]
[{"$f":"IF(C29=\"\",\"\",SUBTOTAL(3,$C$2:C29))","v":""},null,null,null,null,0]
[{"$f":"IF(C30=\"\",\"\",SUBTOTAL(3,$C$2:C30))","v":""},null,null,null,null,0]
[{"$f":"IF(C31=\"\",\"\",SUBTOTAL(3,$C$2:C31))","v":""},null,null,null,null,0]
[{"$f":"IF(C32=\"\",\"\",SUBTOTAL(3,$C$2:C32))","v":""},null,null,null,null,0]
[{"$f":"IF(C33=\"\",\"\",SUBTOTAL(3,$C$2:C33))","v":""},null,null,null,null,0]
[{"$f":"IF(C34=\"\",\"\",SUBTOTAL(3,$C$2:C34))","v":""},null,null,null,null,0]
[{"$f":"IF(C35=\"\",\"\",SUBTOTAL(3,$C$2:C35))","v":""},null,null,null,null,0]
[{"$f":"IF(C36=\"\",\"\",SUBTOTAL(3,$C$2:C36))","v":""},null,null,null,null,0]
[{"$f":"IF(C37=\"\",\"\",SUBTOTAL(3,$C$2:C37))","v":""},null,null,null,null,0]
[{"$f":"IF(C38=\"\",\"\",SUBTOTAL(3,$C$2:C38))","v":""},null,null,null,null,0]
[{"$f":"IF(C39=\"\",\"\",SUBTOTAL(3,$C$2:C39))","v":""},null,null,null,null,0]
[{"$f":"IF(C40=\"\",\"\",SUBTOTAL(3,$C$2:C40))","v":""},null,null,null,null,0]
[{"$f":"IF(C41=\"\",\"\",SUBTOTAL(3,$C$2:C41))","v":""},null,null,null,null,0]
[{"$f":"IF(C42=\"\",\"\",SUBTOTAL(3,$C$2:C42))","v":""},null,null,null,null,0]
[{"$f":"IF(C43=\"\",\"\",SUBTOTAL(3,$C$2:C43))","v":""},null,null,null,null,0]
[{"$f":"IF(C44=\"\",\"\",SUBTOTAL(3,$C$2:C44))","v":""},null,null,null,null,0]
[{"$f":"IF(C45=\"\",\"\",SUBTOTAL(3,$C$2:C45))","v":""},null,null,null,null,0]
[{"$f":"IF(C46=\"\",\"\",SUBTOTAL(3,$C$2:C46))","v":""},null,null,null,null,0]
[{"$f":"IF(C47=\"\",\"\",SUBTOTAL(3,$C$2:C47))","v":""},null,null,null,null,0]
[{"$f":"IF(C48=\"\",\"\",SUBTOTAL(3,$C$2:C48))","v":""},null,null,null,null,0]
[{"$f":"IF(C49=\"\",\"\",SUBTOTAL(3,$C$2:C49))","v":""},null,null,null,null,0]
[{"$f":"IF(C50=\"\",\"\",SUBTOTAL(3,$C$2:C50))","v":""},null,null,null,null,0]
[{"$f":"IF(C51=\"\",\"\",SUBTOTAL(3,$C$2:C51))","v":""},null,null,null,null,0]
[{"$f":"IF(C52=\"\",\"\",SUBTOTAL(3,$C$2:C52))","v":""},null,null,null,null,0]
[{"$f":"IF(C53=\"\",\"\",SUBTOTAL(3,$C$2:C53))","v":""},null,null,null,null,0]
[{"$f":"IF(C54=\"\",\"\",SUBTOTAL(3,$C$2:C54))","v":""},null,null,null,null,0]
[{"$f":"IF(C55=\"\",\"\",SUBTOTAL(3,$C$2:C55))","v":""},null,null,null,null,0]
[{"$f":"IF(C56=\"\",\"\",SUBTOTAL(3,$C$2:C56))","v":""},null,null,null,null,0]
[{"$f":"IF(C57=\"\",\"\",SUBTOTAL(3,$C$2:C57))","v":""},null,null,null,null,0]
[{"$f":"IF(C58=\"\",\"\",SUBTOTAL(3,$C$2:C58))","v":""},null,null,null,null,0]
[{"$f":"IF(C59=\"\",\"\",SUBTOTAL(3,$C$2:C59))","v":""},null,null,null,null,0]
[{"$f":"IF(C60=\"\",\"\",SUBTOTAL(3,$C$2:C60))","v":""},null,null,null,null,0]
[{"$f":"IF(C61=\"\",\"\",SUBTOTAL(3,$C$2:C61))","v":""},null,null,null,null,0]
[{"$f":"IF(C62=\"\",\"\",SUBTOTAL(3,$C$2:C62))","v":""},null,null,null,null,0]
[{"$f":"IF(C63=\"\",\"\",SUBTOTAL(3,$C$2:C63))","v":""},null,null,null,null,0]
[{"$f":"IF(C64=\"\",\"\",SUBTOTAL(3,$C$2:C64))","v":""},null,null,null,null,0]
[{"$f":"IF(C65=\"\",\"\",SUBTOTAL(3,$C$2:C65))","v":""},null,null,null,null,0]
[{"$f":"IF(C66=\"\",\"\",SUBTOTAL(3,$C$2:C66))","v":""},null,null,null,null,0]
[{"$f":"IF(C67=\"\",\"\",SUBTOTAL(3,$C$2:C67))","v":""},null,null,null,null,{"$f":"IFERROR(B67*E67,\"\")","v":0}]
[{"$f":"IF(C68=\"\",\"\",SUBTOTAL(3,$C$2:C68))","v":""},null,null,null,null,0]
[{"$f":"IF(C69=\"\",\"\",SUBTOTAL(3,$C$2:C69))","v":""},null,null,null,null,0]
[{"$f":"IF(C70=\"\",\"\",SUBTOTAL(3,$C$2:C70))","v":""},null,null,null,null,0]
[{"$f":"IF(C71=\"\",\"\",SUBTOTAL(3,$C$2:C71))","v":""},null,null,null,null,0]
[{"$f":"IF(C72=\"\",\"\",SUBTOTAL(3,$C$2:C72))","v":""},null,null,null,null,0]
[{"$f":"IF(C73=\"\",\"\",SUBTOTAL(3,$C$2:C73))","v":""},null,null,null,null,0]
[{"$f":"IF(C74=\"\",\"\",SUBTOTAL(3,$C$2:C74))","v":""},null,null,null,null,0]
[{"$f":"IF(C75=\"\",\"\",SUBTOTAL(3,$C$2:C75))","v":""},null,null,null,null,0]
[{"$f":"IF(C76=\"\",\"\",SUBTOTAL(3,$C$2:C76))","v":""},null,null,null,null,0]
[{"$f":"IF(C77=\"\",\"\",SUBTOTAL(3,$C$2:C77))","v":""},null,null,null,null,0]
[{"$f":"IF(C78=\"\",\"\",SUBTOTAL(3,$C$2:C78))","v":""},null,null,null,null,0]
[{"$f":"IF(C79=\"\",\"\",SUBTOTAL(3,$C$2:C79))","v":""},null,null,null,null,0]
[{"$f":"IF(C80=\"\",\"\",SUBTOTAL(3,$C$2:C80))","v":""},null,null,null,null,0]
[{"$f":"IF(C81=\"\",\"\",SUBTOTAL(3,$C$2:C81))","v":""},null,null,null,null,0]
[{"$f":"IF(C82=\"\",\"\",SUBTOTAL(3,$C$2:C82))","v":""},null,null,null,null,0]
[{"$f":"IF(C83=\"\",\"\",SUBTOTAL(3,$C$2:C83))","v":""},null,null,null,null,0]
[{"$f":"IF(C84=\"\",\"\",SUBTOTAL(3,$C$2:C84))","v":""},null,null,null,null,0]
[{"$f":"IF(C85=\"\",\"\",SUBTOTAL(3,$C$2:C85))","v":""},null,null,null,null,0]
[{"$f":"IF(C86=\"\",\"\",SUBTOTAL(3,$C$2:C86))","v":""},null,null,null,null,0]
[{"$f":"IF(C87=\"\",\"\",SUBTOTAL(3,$C$2:C87))","v":""},null,null,null,null,0]
[{"$f":"IF(C88=\"\",\"\",SUBTOTAL(3,$C$2:C88))","v":""},null,null,null,null,0]
[{"$f":"IF(C89=\"\",\"\",SUBTOTAL(3,$C$2:C89))","v":""},null,null,null,null,0]
[{"$f":"IF(C90=\"\",\"\",SUBTOTAL(3,$C$2:C90))","v":""},null,null,null,null,0]
[{"$f":"IF(C91=\"\",\"\",SUBTOTAL(3,$C$2:C91))","v":""},null,null,null,null,0]
[{"$f":"IF(C92=\"\",\"\",SUBTOTAL(3,$C$2:C92))","v":""},null,null,null,null,0]
[{"$f":"IF(C93=\"\",\"\",SUBTOTAL(3,$C$2:C93))","v":""},null,null,null,null,0]
[{"$f":"IF(C94=\"\",\"\",SUBTOTAL(3,$C$2:C94))","v":""},null,null,null,null,0]
[{"$f":"IF(C95=\"\",\"\",SUBTOTAL(3,$C$2:C95))","v":""},null,null,null,null,0]
[{"$f":"IF(C96=\"\",\"\",SUBTOTAL(3,$C$2:C96))","v":""},null,null,null,null,0]
[{"$f":"IF(C97=\"\",\"\",SUBTOTAL(3,$C$2:C97))","v":""},null,null,null,null,0]
[{"$f":"IF(C98=\"\",\"\",SUBTOTAL(3,$C$2:C98))","v":""},null,null,null,null,0]
[{"$f":"IF(C99=\"\",\"\",SUBTOTAL(3,$C$2:C99))","v":""},null,null,null,null,0]
[{"$f":"IF(C100=\"\",\"\",SUBTOTAL(3,$C$2:C100))","v":""},null,null,null,null,0]
[{"$f":"IF(C101=\"\",\"\",SUBTOTAL(3,$C$2:C101))","v":""},null,null,null,null,0]

{"sheet":"بادى 23","index":1,"n_rows":47,"n_cols":10,"rows_kept":47,"cut":false,"hidden":false,"merged":[]}
["مسلسل",{"$f":"SUM($B$2:$B$1000)","v":840},"الصنف","الاسم","السعر",{"$f":"SUM($F$2:$F$1000)","v":22688.75},{"$f":"SUM($G$2:$G$1000)","v":7.7},{"$f":"SUM($H$2:$H$1000)","v":32.299999999999997},"التاريخ",{"$f":"SUM($J$2:$J$1000)","v":40}]
[6,30,"بادى 23","شكرى",7.5,225,{"$f":"B2/50","v":0.6},{"$f":"J2-G2","v":19.399999999999999},{"$f":"IF(J2=\"\",\"\",TODAY())","v":"2018-10-17"},20]
[1,105,"بادى 23","شكرى",7.75,813.75,{"$f":"B3/50","v":2.1},{"$f":"J3-G3","v":17.899999999999999},{"$f":"IF(J3=\"\",\"\",TODAY())","v":"2018-10-17"},20]
[1,200,"بادى 23","شكرى",7.5,1500,"برجاء تعديل","برجاء تعديل اسم الخلية",null,"برجاء تعديل "]
[1,150,"بادى 23","شكرى",7.5,1125,"اسم الخلية من","من الباقى بالجنية الى الباقى",null,"اسم الخلية  من "]
[1,250,"بادى 23","شكرى",7.5,1875,"الدفع بالجنية الى","بالشكارة مع الاحتفاظ",null,"الدفع بالجنية الى "]
[1,50,"بادى 23","شكرى",340,17000,"المباع بالشكارة","بالجمع التقائى ",null,"الوارد بالشكارة"]
[null,20,"بادى 27","شكرى",0,0,"مع الاحتفاظ بخاصية","للعمود ",{"$f":"IF(J8=\"\",\"\",TODAY())","v":"2018-10-17"},"مع الاحتفاظ بخاصية"]
[null,5,"بادى 28","شكرى",0,0,"الجمع التلقائى ",null,"2018-10-17","الجمع التلقائى "]
[null,10,"بادى 23","على",7.5,75,"للعمود",null,"2018-10-17","للعمود"]
[null,20,"بادى23","على",7.5,75,5,{"$f":"J11-G11","v":-5},"2018-10-17",0]
[null,null,null,null,null,null,null,null,"الرجاء تعديل المعادلة"]
[null,null,null,null,null,null,null,null,"لجعل التاريخ يكتب عند "]
[null,null,null,null,null,null,null,null," التوريد ولا يتغير "]
[null,null,null,null,null,null,null,null,"فى اليوم التالى"]
[null,null,null,null,null,null,null,null," يظل ثابت على يوم التوريد"]
[null,null,null,null,null,null,null,null," ويتغير فى خلية اخرى بموعد التوريد "]
[null,null,null,null,null,null,null,null," الجديد"]
[null,null,null,null,null,null,null,null,""]
[null,null,null,null,null,null,null,null,""]
[null,null,null,null,null,null,{"$f":"B21/50","v":0},null,""]
[null,null,null,null,null,null,0,null,""]
[null,null,null,null,null,null,0,null,""]
[null,null,null,null,null,null,0,null,""]
[null,null,null,null,null,null,0,null,""]
[null,null,null,null,null,null,0,null,""]
[null,null,null,null,null,null,0,null,""]
[null,null,null,null,null,null,0,null,""]
[null,null,null,null,null,null,0,null,""]
[null,null,null,null,null,null,0,null,""]
[null,null,null,null,null,null,0,null,""]
[null,null,null,null,null,null,0,null,""]
[null,null,null,null,null,null,0,null,""]
[null,null,null,null,null,null,0,null,""]
[null,null,null,null,null,null,0,null,""]
[null,null,null,null,null,null,0,null,""]
[null,null,null,null,null,null,0,null,""]
[null,null,null,null,null,null,0,null,""]
[null,null,null,null,null,null,0,null,""]
[null,null,null,null,null,null,0,null,""]
[null,null,null,null,null,null,0,null,""]
[null,null,null,null,null,null,0,null,""]
[null,null,null,null,null,null,0,null,""]
[null,null,null,null,null,null,0,null,""]
[null,null,null,null,null,null,0,null,""]
[null,null,null,null,null,null,0,null,""]
[null,null,null,null,null,null,0,null,""]

{"sheet":"نامى 21خشن","index":2,"n_rows":47,"n_cols":10,"rows_kept":47,"cut":false,"hidden":false,"merged":[]}
["مسلسل",{"$f":"SUM($B$2:$B$1000)","v":135},"الصنف","الاسم","السعر",{"$f":"SUM($F$2:$F$1000)","v":1038.75},{"$f":"SUM($G$2:$G$1000)","v":2.7},{"$f":"SUM($H$2:$H$1000)","v":37.299999999999997},"التاريخ",{"$f":"SUM($J$2:$J$1000)","v":40}]
[6,30,"بادى 23","شكرى",7.5,225,{"$f":"B2/50","v":0.6},{"$f":"J2-G2","v":19.399999999999999},{"$f":"IF(J2=\"\",\"\",TODAY())","v":"2018-10-17"},20]
[1,105,"بادى 23","شكرى",7.75,813.75,{"$f":"B3/50","v":2.1},{"$f":"J3-G3","v":17.899999999999999},{"$f":"IF(J3=\"\",\"\",TODAY())","v":"2018-10-17"},20]
[null,null,null,null,null,null,"برجاء تعديل ","برجاء تعديل اسم الخلية",{"$f":"IF(J4=\"\",\"\",TODAY())","v":"2018-10-17"},"برجاء تعديل "]
[null,null,null,null,null,null,"اسم الخلية  من ","من الباقى بالجنية الى الباقى","2018-10-17","اسم الخلية  من "]
[null,null,null,null,null,null,"الدفع بالجنية الى ","بالشكارة  مع الاحتفاظ ","2018-10-17","الدفع بالجنية الى "]
[null,null,null,null,null,null,"الوزن بالشكارة","بخصية الجمع التلقائى","2018-10-17","الوارد بالشكارة"]
[null,null,null,null,null,null,"مع الاحتفاظ بخاصية","للعمود ","2018-10-17","مع الاحتفاظ بخاصية"]
[null,null,null,null,null,null,"الجمع التلقائى ",null,"2018-10-17","الجمع التلقائى "]
[null,null,null,null,null,null,"للعمود",null,"2018-10-17","للعمود"]
[null,null,null,null,null,null,null,null,""]
[null,null,null,null,null,null,null,null,""]
[null,null,null,null,null,null,null,null,""]
[null,null,null,null,null,null,null,null,""]
[null,null,null,null,null,null,null,null,""]
[null,null,null,null,null,null,null,null,""]
[null,null,null,null,null,null,null,null,""]
[null,null,null,null,null,null,null,null,""]
[null,null,null,null,null,null,null,null,""]
[null,null,null,null,null,null,null,null,""]
[null,null,null,null,null,null,{"$f":"B21/50","v":0},null,""]
[null,null,null,null,null,null,0,null,""]
[null,null,null,null,null,null,0,null,""]
[null,null,null,null,null,null,0,null,""]
[null,null,null,null,null,null,0,null,""]
[null,null,null,null,null,null,0,null,""]
[null,null,null,null,null,null,0,null,""]
[null,null,null,null,null,null,0,null,""]
[null,null,null,null,null,null,0,null,""]
[null,null,null,null,null,null,0,null,""]
[null,null,null,null,null,null,0,null,""]
[null,null,null,null,null,null,0,null,""]
[null,null,null,null,null,null,0,null,""]
[null,null,null,null,null,null,0,null,""]
[null,null,null,null,null,null,0,null,""]
[null,null,null,null,null,null,0,null,""]
[null,null,null,null,null,null,0,null,""]
[null,null,null,null,null,null,0,null,""]
[null,null,null,null,null,null,0,null,""]
[null,null,null,null,null,null,0,null,""]
[null,null,null,null,null,null,0,null,""]
[null,null,null,null,null,null,0,null,""]
[null,null,null,null,null,null,0,null,""]
[null,null,null,null,null,null,0,null,""]
[null,null,null,null,null,null,0,null,""]
[null,null,null,null,null,null,0,null,""]
[null,null,null,null,null,null,0,null,""]

{"sheet":"بادى نامى  ناعم","index":3,"n_rows":47,"n_cols":10,"rows_kept":47,"cut":false,"hidden":false,"merged":[]}
["مسلسل",{"$f":"SUM($B$2:$B$1000)","v":135},"الصنف","الاسم","السعر",{"$f":"SUM($F$2:$F$1000)","v":1038.75},{"$f":"SUM($G$2:$G$1000)","v":2.7},{"$f":"SUM($H$2:$H$1000)","v":37.299999999999997},"التاريخ",{"$f":"SUM($J$2:$J$1000)","v":40}]
[6,30,"بادى 23","شكرى",7.5,225,{"$f":"B2/50","v":0.6},{"$f":"J2-G2","v":19.399999999999999},{"$f":"IF(J2=\"\",\"\",TODAY())","v":"2018-10-17"},20]
[1,105,"بادى 23","شكرى",7.75,813.75,{"$f":"B3/50","v":2.1},{"$f":"J3-G3","v":17.899999999999999},{"$f":"IF(J3=\"\",\"\",TODAY())","v":"2018-10-17"},20]
[null,null,null,null,null,null,"برجاء تعديل ","برجاء تعديل اسم الخلية",{"$f":"IF(J4=\"\",\"\",TODAY())","v":"2018-10-17"},"برجاء تعديل "]
[null,null,null,null,null,null,"اسم الخلية  من ","من الباقى بالجنية الى الباقى","2018-10-17","اسم الخلية  من "]
[null,null,null,null,null,null,"الدفع بالجنية الى ","بالشكارة  مع الاحتفاظ ","2018-10-17","الدفع بالجنية الى "]
[null,null,null,null,null,null,"الوزن بالشكارة","بخصية الجمع التلقائى","2018-10-17","الوارد بالشكارة"]
[null,null,null,null,null,null,"مع الاحتفاظ بخاصية","للعمود ","2018-10-17","مع الاحتفاظ بخاصية"]
[null,null,null,null,null,null,"الجمع التلقائى ",null,"2018-10-17","الجمع التلقائى "]
[null,null,null,null,null,null,"للعمود",null,"2018-10-17","للعمود"]
[null,null,null,null,null,null,null,null,""]
[null,null,null,null,null,null,null,null,""]
[null,null,null,null,null,null,null,null,""]
[null,null,null,null,null,null,null,null,""]
[null,null,null,null,null,null,null,null,""]
[null,null,null,null,null,null,null,null,""]
[null,null,null,null,null,null,null,null,""]
[null,null,null,null,null,null,null,null,""]
[null,null,null,null,null,null,null,null,""]
[null,null,null,null,null,null,null,null,""]
[null,null,null,null,null,null,{"$f":"B21/50","v":0},null,""]
[null,null,null,null,null,null,0,null,""]
[null,null,null,null,null,null,0,null,""]
[null,null,null,null,null,null,0,null,""]
[null,null,null,null,null,null,0,null,""]
[null,null,null,null,null,null,0,null,""]
[null,null,null,null,null,null,0,null,""]
[null,null,null,null,null,null,0,null,""]
[null,null,null,null,null,null,0,null,""]
[null,null,null,null,null,null,0,null,""]
[null,null,null,null,null,null,0,null,""]
[null,null,null,null,null,null,0,null,""]
[null,null,null,null,null,null,0,null,""]
[null,null,null,null,null,null,0,null,""]
[null,null,null,null,null,null,0,null,""]
[null,null,null,null,null,null,0,null,""]
[null,null,null,null,null,null,0,null,""]
[null,null,null,null,null,null,0,null,""]
[null,null,null,null,null,null,0,null,""]
[null,null,null,null,null,null,0,null,""]
[null,null,null,null,null,null,0,null,""]
[null,null,null,null,null,null,0,null,""]
[null,null,null,null,null,null,0,null,""]
[null,null,null,null,null,null,0,null,""]
[null,null,null,null,null,null,0,null,""]
[null,null,null,null,null,null,0,null,""]
[null,null,null,null,null,null,0,null,""]

{"sheet":"بادى نامى خشن","index":4,"n_rows":47,"n_cols":10,"rows_kept":47,"cut":false,"hidden":false,"merged":[]}
["مسلسل",{"$f":"SUM($B$2:$B$1000)","v":135},"الصنف","الاسم","السعر",{"$f":"SUM($F$2:$F$1000)","v":1038.75},{"$f":"SUM($G$2:$G$1000)","v":2.7},{"$f":"SUM($H$2:$H$1000)","v":37.299999999999997},"التاريخ",{"$f":"SUM($J$2:$J$1000)","v":40}]
[6,30,"بادى 23","شكرى",7.5,225,{"$f":"B2/50","v":0.6},{"$f":"J2-G2","v":19.399999999999999},{"$f":"IF(J2=\"\",\"\",TODAY())","v":"2018-10-17"},20]
[1,105,"بادى 23","شكرى",7.75,813.75,{"$f":"B3/50","v":2.1},{"$f":"J3-G3","v":17.899999999999999},{"$f":"IF(J3=\"\",\"\",TODAY())","v":"2018-10-17"},20]
[null,null,null,null,null,null,"برجاء تعديل ","برجاء تعديل اسم الخلية",{"$f":"IF(J4=\"\",\"\",TODAY())","v":"2018-10-17"},"برجاء تعديل "]
[null,null,null,null,null,null,"اسم الخلية  من ","من الباقى بالجنية الى الباقى","2018-10-17","اسم الخلية  من "]
[null,null,null,null,null,null,"الدفع بالجنية الى ","بالشكارة  مع الاحتفاظ ","2018-10-17","الدفع بالجنية الى "]
[null,null,null,null,null,null,"الوزن بالشكارة","بخصية الجمع التلقائى","2018-10-17","الوارد بالشكارة"]
[null,null,null,null,null,null,"مع الاحتفاظ بخاصية","للعمود ","2018-10-17","مع الاحتفاظ بخاصية"]
[null,null,null,null,null,null,"الجمع التلقائى ",null,"2018-10-17","الجمع التلقائى "]
[null,null,null,null,null,null,"للعمود",null,"2018-10-17","للعمود"]
[null,null,null,null,null,null,null,null,""]
[null,null,null,null,null,null,null,null,""]
[null,null,null,null,null,null,null,null,""]
[null,null,null,null,null,null,null,null,""]
[null,null,null,null,null,null,null,null,""]
[null,null,null,null,null,null,null,null,""]
[null,null,null,null,null,null,null,null,""]
[null,null,null,null,null,null,null,null,""]
[null,null,null,null,null,null,null,null,""]
[null,null,null,null,null,null,null,null,""]
[null,null,null,null,null,null,{"$f":"B21/50","v":0},null,""]
[null,null,null,null,null,null,0,null,""]
[null,null,null,null,null,null,0,null,""]
[null,null,null,null,null,null,0,null,""]
[null,null,null,null,null,null,0,null,""]
[null,null,null,null,null,null,0,null,""]
[null,null,null,null,null,null,0,null,""]
[null,null,null,null,null,null,0,null,""]
[null,null,null,null,null,null,0,null,""]
[null,null,null,null,null,null,0,null,""]
[null,null,null,null,null,null,0,null,""]
[null,null,null,null,null,null,0,null,""]
[null,null,null,null,null,null,0,null,""]
[null,null,null,null,null,null,0,null,""]
[null,null,null,null,null,null,0,null,""]
[null,null,null,null,null,null,0,null,""]
[null,null,null,null,null,null,0,null,""]
[null,null,null,null,null,null,0,null,""]
[null,null,null,null,null,null,0,null,""]
[null,null,null,null,null,null,0,null,""]
[null,null,null,null,null,null,0,null,""]
[null,null,null,null,null,null,0,null,""]
[null,null,null,null,null,null,0,null,""]
[null,null,null,null,null,null,0,null,""]
[null,null,null,null,null,null,0,null,""]
[null,null,null,null,null,null,0,null,""]
[null,null,null,null,null,null,0,null,""]

{"sheet":"بياض","index":5,"n_rows":47,"n_cols":10,"rows_kept":47,"cut":false,"hidden":false,"merged":[]}
["مسلسل",{"$f":"SUM($B$2:$B$1000)","v":135},"الصنف","الاسم","السعر",{"$f":"SUM($F$2:$F$1000)","v":1038.75},{"$f":"SUM($G$2:$G$1000)","v":2.7},{"$f":"SUM($H$2:$H$1000)","v":37.299999999999997},"التاريخ",{"$f":"SUM($J$2:$J$1000)","v":40}]
[6,30,"بادى 23","شكرى",7.5,225,{"$f":"B2/50","v":0.6},{"$f":"J2-G2","v":19.399999999999999},{"$f":"IF(J2=\"\",\"\",TODAY())","v":"2018-10-17"},20]
[1,105,"بادى 23","شكرى",7.75,813.75,{"$f":"B3/50","v":2.1},{"$f":"J3-G3","v":17.899999999999999},{"$f":"IF(J3=\"\",\"\",TODAY())","v":"2018-10-17"},20]
[null,null,null,null,null,null,"برجاء تعديل ","برجاء تعديل اسم الخلية",{"$f":"IF(J4=\"\",\"\",TODAY())","v":"2018-10-17"},"برجاء تعديل "]
[null,null,null,null,null,null,"اسم الخلية  من ","من الباقى بالجنية الى الباقى","2018-10-17","اسم الخلية  من "]
[null,null,null,null,null,null,"الدفع بالجنية الى ","بالشكارة  مع الاحتفاظ ","2018-10-17","الدفع بالجنية الى "]
[null,null,null,null,null,null,"الوزن بالشكارة","بخصية الجمع التلقائى","2018-10-17","الوارد بالشكارة"]
[null,null,null,null,null,null,"مع الاحتفاظ بخاصية","للعمود ","2018-10-17","مع الاحتفاظ بخاصية"]
[null,null,null,null,null,null,"الجمع التلقائى ",null,"2018-10-17","الجمع التلقائى "]
[null,null,null,null,null,null,"للعمود",null,"2018-10-17","للعمود"]
[null,null,null,null,null,null,null,null,""]
[null,null,null,null,null,null,null,null,""]
[null,null,null,null,null,null,null,null,""]
[null,null,null,null,null,null,null,null,""]
[null,null,null,null,null,null,null,null,""]
[null,null,null,null,null,null,null,null,""]
[null,null,null,null,null,null,null,null,""]
[null,null,null,null,null,null,null,null,""]
[null,null,null,null,null,null,null,null,""]
[null,null,null,null,null,null,null,null,""]
[null,null,null,null,null,null,{"$f":"B21/50","v":0},null,""]
[null,null,null,null,null,null,0,null,""]
[null,null,null,null,null,null,0,null,""]
[null,null,null,null,null,null,0,null,""]
[null,null,null,null,null,null,0,null,""]
[null,null,null,null,null,null,0,null,""]
[null,null,null,null,null,null,0,null,""]
[null,null,null,null,null,null,0,null,""]
[null,null,null,null,null,null,0,null,""]
[null,null,null,null,null,null,0,null,""]
[null,null,null,null,null,null,0,null,""]
[null,null,null,null,null,null,0,null,""]
[null,null,null,null,null,null,0,null,""]
[null,null,null,null,null,null,0,null,""]
[null,null,null,null,null,null,0,null,""]
[null,null,null,null,null,null,0,null,""]
[null,null,null,null,null,null,0,null,""]
[null,null,null,null,null,null,0,null,""]
[null,null,null,null,null,null,0,null,""]
[null,null,null,null,null,null,0,null,""]
[null,null,null,null,null,null,0,null,""]
[null,null,null,null,null,null,0,null,""]
[null,null,null,null,null,null,0,null,""]
[null,null,null,null,null,null,0,null,""]
[null,null,null,null,null,null,0,null,""]
[null,null,null,null,null,null,0,null,""]
[null,null,null,null,null,null,0,null,""]

{"sheet":"ردة","index":6,"n_rows":47,"n_cols":10,"rows_kept":47,"cut":false,"hidden":false,"merged":[]}
["مسلسل",{"$f":"SUM($B$2:$B$1000)","v":135},"الصنف","الاسم","السعر",{"$f":"SUM($F$2:$F$1000)","v":1038.75},{"$f":"SUM($G$2:$G$1000)","v":2.7},{"$f":"SUM($H$2:$H$1000)","v":37.299999999999997},"التاريخ",{"$f":"SUM($J$2:$J$1000)","v":40}]
[6,30,"بادى 23","شكرى",7.5,225,{"$f":"B2/50","v":0.6},{"$f":"J2-G2","v":19.399999999999999},{"$f":"IF(J2=\"\",\"\",TODAY())","v":"2018-10-17"},20]
[1,105,"بادى 23","شكرى",7.75,813.75,{"$f":"B3/50","v":2.1},{"$f":"J3-G3","v":17.899999999999999},{"$f":"IF(J3=\"\",\"\",TODAY())","v":"2018-10-17"},20]
[null,null,null,null,null,null,"برجاء تعديل ","برجاء تعديل اسم الخلية",{"$f":"IF(J4=\"\",\"\",TODAY())","v":"2018-10-17"},"برجاء تعديل "]
[null,null,null,null,null,null,"اسم الخلية  من ","من الباقى بالجنية الى الباقى","2018-10-17","اسم الخلية  من "]
[null,null,null,null,null,null,"الدفع بالجنية الى ","بالشكارة  مع الاحتفاظ ","2018-10-17","الدفع بالجنية الى "]
[null,null,null,null,null,null,"الوزن بالشكارة","بخصية الجمع التلقائى","2018-10-17","الوارد بالشكارة"]
[null,null,null,null,null,null,"مع الاحتفاظ بخاصية","للعمود ","2018-10-17","مع الاحتفاظ بخاصية"]
[null,null,null,null,null,null,"الجمع التلقائى ",null,"2018-10-17","الجمع التلقائى "]
[null,null,null,null,null,null,"للعمود",null,"2018-10-17","للعمود"]
[null,null,null,null,null,null,null,null,""]
[null,null,null,null,null,null,null,null,""]
[null,null,null,null,null,null,null,null,""]
[null,null,null,null,null,null,null,null,""]
[null,null,null,null,null,null,null,null,""]
[null,null,null,null,null,null,null,null,""]
[null,null,null,null,null,null,null,null,""]
[null,null,null,null,null,null,null,null,""]
[null,null,null,null,null,null,null,null,""]
[null,null,null,null,null,null,null,null,""]
[null,null,null,null,null,null,{"$f":"B21/50","v":0},null,""]
[null,null,null,null,null,null,0,null,""]
[null,null,null,null,null,null,0,null,""]
[null,null,null,null,null,null,0,null,""]
[null,null,null,null,null,null,0,null,""]
[null,null,null,null,null,null,0,null,""]
[null,null,null,null,null,null,0,null,""]
[null,null,null,null,null,null,0,null,""]
[null,null,null,null,null,null,0,null,""]
[null,null,null,null,null,null,0,null,""]
[null,null,null,null,null,null,0,null,""]
[null,null,null,null,null,null,0,null,""]
[null,null,null,null,null,null,0,null,""]
[null,null,null,null,null,null,0,null,""]
[null,null,null,null,null,null,0,null,""]
[null,null,null,null,null,null,0,null,""]
[null,null,null,null,null,null,0,null,""]
[null,null,null,null,null,null,0,null,""]
[null,null,null,null,null,null,0,null,""]
[null,null,null,null,null,null,0,null,""]
[null,null,null,null,null,null,0,null,""]
[null,null,null,null,null,null,0,null,""]
[null,null,null,null,null,null,0,null,""]
[null,null,null,null,null,null,0,null,""]
[null,null,null,null,null,null,0,null,""]
[null,null,null,null,null,null,0,null,""]
[null,null,null,null,null,null,0,null,""]

{"sheet":"دشيشة","index":7,"n_rows":47,"n_cols":10,"rows_kept":47,"cut":false,"hidden":false,"merged":[]}
["مسلسل",{"$f":"SUM($B$2:$B$1000)","v":415},"الصنف","الاسم","السعر",{"$f":"SUM($F$2:$F$1000)","v":1038.75},{"$f":"SUM($G$2:$G$1000)","v":8.3000000000000007},{"$f":"SUM($H$2:$H$1000)","v":61.699999999999996},"التاريخ",{"$f":"SUM($J$2:$J$1000)","v":70}]
[6,30,"بادى 23","شكرى",7.5,225,{"$f":"B2/50","v":0.6},{"$f":"J2-G2","v":19.399999999999999},{"$f":"IF(J2=\"\",\"\",TODAY())","v":"2018-10-17"},20]
[1,105,"بادى 23","شكرى",7.75,813.75,{"$f":"B3/50","v":2.1},{"$f":"J3-G3","v":17.899999999999999},{"$f":"IF(J3=\"\",\"\",TODAY())","v":"2018-10-17"},20]
[null,null,null,null,null,null,"برجاء تعديل ","برجاء تعديل اسم الخلية",{"$f":"IF(J4=\"\",\"\",TODAY())","v":"2018-10-17"},"برجاء تعديل "]
[null,null,null,null,null,null,"اسم الخلية  من ","من الباقى بالجنية الى الباقى","2018-10-17","اسم الخلية  من "]
[null,null,null,null,null,null,"الدفع بالجنية الى ","بالشكارة  مع الاحتفاظ ","2018-10-17","الدفع بالجنية الى "]
[null,null,null,null,null,null,"الوزن بالشكارة","بخصية الجمع التلقائى","2018-10-17","الوارد بالشكارة"]
[null,null,null,null,null,null,"مع الاحتفاظ بخاصية","للعمود ","2018-10-17","مع الاحتفاظ بخاصية"]
[null,null,null,null,null,null,"الجمع التلقائى ",null,"2018-10-17","الجمع التلقائى "]
[null,null,null,null,null,null,"للعمود",null,"2018-10-17","للعمود"]
[null,250,null,null,null,null,{"$f":"B11/50","v":5},{"$f":"J11-G11","v":-5},"2018-10-17",0]
[null,null,null,null,null,null,{"$f":"B12/50","v":0},30,"2018-10-17",30]
[null,30,null,null,null,null,{"$f":"B13/50","v":0.6},-0.6,""]
[null,null,null,null,null,null,0,0,""]
[null,null,null,null,null,null,0,0,""]
[null,null,null,null,null,null,0,0,""]
[null,null,null,null,null,null,0,0,""]
[null,null,null,null,null,null,0,0,""]
[null,null,null,null,null,null,0,0,""]
[null,null,null,null,null,null,0,0,""]
[null,null,null,null,null,null,0,0,""]
[null,null,null,null,null,null,0,0,""]
[null,null,null,null,null,null,0,0,""]
[null,null,null,null,null,null,{"$f":"B24/50","v":0},0,""]
[null,null,null,null,null,null,0,0,""]
[null,null,null,null,null,null,0,0,""]
[null,null,null,null,null,null,0,0,""]
[null,null,null,null,null,null,0,0,""]
[null,null,null,null,null,null,0,null,""]
[null,null,null,null,null,null,0,null,""]
[null,null,null,null,null,null,0,null,""]
[null,null,null,null,null,null,0,null,""]
[null,null,null,null,null,null,0,null,""]
[null,null,null,null,null,null,0,null,""]
[null,null,null,null,null,null,0,null,""]
[null,null,null,null,null,null,0,null,""]
[null,null,null,null,null,null,0,null,""]
[null,null,null,null,null,null,0,null,""]
[null,null,null,null,null,null,0,null,""]
[null,null,null,null,null,null,0,null,""]
[null,null,null,null,null,null,0,null,""]
[null,null,null,null,null,null,0,null,""]
[null,null,null,null,null,null,0,null,""]
[null,null,null,null,null,null,0,null,""]
[null,null,null,null,null,null,0,null,""]
[null,null,null,null,null,null,0,null,""]
[null,null,null,null,null,null,0,null,""]

{"sheet":"Setting","index":8,"n_rows":21,"n_cols":5,"rows_kept":21,"cut":false,"hidden":true,"merged":[]}
["اسماء الأصناف","سعر الكيلو",null,null,"أسماء العملاء"]
["بلدى",2.5,null,null,"عميل رقم 1"]
["ساسو",3,null,null,"عميل رقم 2"]
["دقى",3.5,null,null,"عميل رقم 3"]
["فيومى",4,null,null,"عميل رقم 4"]
["دشيشة",4.5,null,null,"عميل رقم 5"]
["ردة",4.5,null,null,"عميل رقم 6"]
["علف بط",5,null,null,"عميل رقم 7"]
["بياض",5,null,null,"عميل رقم 8"]
["تسمين",6.5,null,null,"عميل رقم 9"]
["بادى نامى خشن",7,null,null,"عميل رقم 10"]
["بادى نامى ناعم",7,null,null,"عميل رقم 11"]
["نامى خشن",7,null,null,"عميل رقم 12"]
["بادى ناعم",7.5,null,null,"عميل رقم 13"]
["مولر",15,null,null,"عميل رقم 14"]
["موسكوفى",18,null,null,"عميل رقم 15"]
["رومى",30,null,null,"عميل رقم 16"]
[null,null,null,null,"عميل رقم 17"]
[null,null,null,null,"عميل رقم 18"]
[null,null,null,null,"عميل رقم 19"]
[null,null,null,null,"عميل رقم 20"]